bitfinex-derivatives/quotes_ETHF0:USTF0_20220106
["timestamp","ask_amount","ask_price","bid_price","bid_amount"]
[1641481477874,0.153218,3373.1,3372.8,2.00479]
[1641481478272,1.5,3373.3,3372.9,0.857164]
[1641481478471,0.397182,3373.2,3372.8,2.00479]
[1641481478671,1.5,3373.5,3372.8,2.00479]
[1641481479072,1.897182,3373.5,3372.8,2.00479]
[1641481479270,1.5,3373.5,3372.9,0.397182]
[1641481479471,2.7093871,3373.6,3372.9,13.077182]
[1641481479673,2.7093871,3373.6,3373.0,0.384472]
[1641481479874,2.7093871,3373.6,3373.1,13.077182]
[1641481480073,2.7093871,3373.6,3373.1,0.397182]
[1641481480273,2.7093871,3373.6,3373.2,12.68]
[1641481480473,2.7093871,3373.6,3373.3,0.397182]
[1641481480677,0.93758972,3373.8,3373.3,0.397182]
[1641481480678,0.93758972,3373.8,3373.5,12.68]
[1641481480876,1.76179509,3374.7,3373.5,14.16084088]
[1641481481175,1.55420906,3375.2,3374.7,12.68]
[1641481481373,1.55420906,3375.2,3374.8,0.397182]
[1641481481576,1.55420906,3375.2,3375.1,4.00958]
[1641481481775,1.55420906,3375.2,3375.1,5.251216]
[1641481482174,3.39374497,3375.5,3375.1,5.251216]
[1641481482386,1.5,3375.3,3375.1,2.00479]
[1641481482574,0.153218,3375.2,3373.6,1.4810295]
[1641481482773,1.5,3374.8,3373.1,1.48135858]
[1641481482974,0.8636,3375.2,3373.1,12.68]
[1641481483175,0.8636,3375.2,3373.9,12.68]
[1641481483375,0.8636,3375.2,3374.4,14.16081895]
[1641481483576,1.5,3375.1,3374.9,2.00479]
[1641481483975,1.5,3375.1,3374.9,0.397182]
[1641481484574,0.153218,3375.0,3374.9,0.397182]
[1641481484976,1.5,3375.1,3374.9,0.857164]
[1641481485374,1.5,3375.5,3374.9,0.857164]
[1641481485575,1.5,3375.3,3374.9,0.857164]
[1641481485975,1.5,3376.0,3374.9,0.857164]
[1641481486175,1.5,3375.1,3374.9,0.857164]
[1641481486575,1.5,3375.2,3374.9,0.857164]
[1641481487675,1.5,3375.2,3375.0,2.00479]
[1641481487875,1.5,3375.2,3375.1,0.397182]
[1641481488076,1.653218,3375.2,3375.0,2.00479]
[1641481488276,2.00479,3375.8,3375.0,2.00479]
[1641481488475,2.00479,3375.8,3375.1,0.397182]
[1641481488675,1.5,3375.7,3375.1,0.397182]
[1641481488876,1.897182,3375.7,3375.1,0.397182]
[1641481489075,1.897182,3375.7,3375.0,0.3914725]
[1641481489276,0.397182,3375.7,3375.1,12.68]
[1641481489477,0.397182,3375.7,3375.0,0.3914725]
[1641481489676,1.897182,3375.7,3375.0,0.3914725]
[1641481489877,1.5,3375.7,3375.0,0.3914725]
[1641481490078,1.5,3375.2,3375.0,0.3914725]
[1641481490276,0.153218,3375.1,3375.0,0.3914725]
[1641481490477,1.5,3375.2,3375.0,0.8514545]
[1641481491079,1.5,3375.5,3375.0,0.8514545]
[1641481491281,2.00479,3375.8,3375.1,12.68]
[1641481491579,2.00479,3375.8,3375.1,14.16050106]
[1641481493277,1.5,3376.3,3375.1,14.16050106]
[1641481493680,1.5,3376.3,3375.5,12.68]
[1641481493880,1.48050106,3377.0,3375.7,12.68]
[1641481494080,1.87075864,3378.3,3375.7,12.68]
[1641481494081,1.5,3377.2,3375.7,12.68]
[1641481494283,1.5,3377.2,3375.7,13.3511]
[1641481494681,1.5,3377.2,3375.9,12.68]
[1641481495084,1.5,3377.9,3375.9,12.68]
[1641481495281,1.5,3377.2,3375.9,12.68]
[1641481495682,2.00479,3377.1,3376.4,12.68]
[1641481495883,2.00479,3377.1,3376.6,12.68]
[1641481496082,1.5,3376.9,3376.6,12.68]
[1641481496283,1.5,3376.9,3376.7,0.459982]
[1641481496885,0.93743811,3379.3,3376.8,12.68]
[1641481497183,1.5,3379.2,3376.8,12.68]
[1641481497383,1.5,3377.9,3376.8,30.596]
[1641481497586,2.43743811,3379.3,3376.7,0.7427]
[1641481497784,2.00479,3378.5,3377.7,2.00479]
[1641481497985,1.5,3377.9,3377.7,2.00479]
[1641481498184,1.5,3378.1,3377.7,2.00479]
[1641481498583,1.5,3378.3,3377.7,2.00479]
[1641481498782,1.5,3377.8,3377.7,2.00479]
[1641481498985,3.0,3377.8,3377.7,2.00479]
[1641481499183,1.5,3377.8,3377.7,2.00479]
[1641481499383,3.0,3377.8,3377.3,2.00479]
[1641481499585,1.5,3377.4,3374.8,1.47]
[1641481499785,1.5,3376.9,3376.7,2.00479]
[1641481499983,1.5,3376.9,3376.8,0.459982]
[1641481500285,2.00479,3377.5,3376.7,2.00479]
[1641481500286,3.50479,3377.5,3376.7,2.00479]
[1641481500485,3.50479,3377.5,3376.8,1.86421287]
[1641481500486,2.00479,3377.5,3376.8,1.86421287]
[1641481500684,1.5,3377.2,3376.8,0.384472]
[1641481500884,2.00479,3377.5,3376.8,0.384472]
[1641481501083,1.5,3377.1,3376.8,0.384472]
[1641481501286,2.00479,3377.5,3376.9,0.459982]
[1641481501483,1.5,3377.0,3376.7,2.00479]
[1641481501684,1.5,3376.8,3376.3,2.00479]
[1641481501886,1.5,3376.4,3376.3,2.00479]
[1641481502084,1.5,3376.4,3376.3,2.464772]
[1641481502485,1.5,3376.4,3376.3,2.00479]
[1641481502686,3.0,3376.4,3375.2,1.47]
[1641481502889,1.5,3375.3,3374.6,32.0768]
[1641481503188,0.8134,3375.3,3374.2,12.68]
[1641481503987,0.8134,3375.3,3374.5,1.47]
[1641481504187,1.5,3375.4,3374.6,14.15]
[1641481504588,1.5,3375.4,3374.8,12.68]
[1641481504987,1.5,3375.9,3374.8,12.68]
[1641481505189,1.5,3376.8,3374.8,12.68]
[1641481505389,1.5,3376.8,3375.0,20.68]
[1641481505588,1.5,3376.8,3375.0,12.68]
[1641481505789,1.5,3376.7,3376.1,2.00479]
[1641481505988,1.5,3377.8,3376.1,2.00479]
[1641481505989,1.5,3377.5,3376.1,15.54729]
[1641481506288,1.5,3378.0,3376.1,15.54729]
[1641481506488,1.5,3378.1,3376.3,12.68]
[1641481506890,1.5,3377.2,3376.3,12.68]
[1641481507492,1.5,3377.2,3376.1,2.86729]
[1641481507692,2.00479,3377.0,3376.1,15.54729]
[1641481508091,1.5,3376.7,3376.3,12.68]
[1641481508293,1.5,3376.7,3376.3,0.384472]
[1641481508693,2.00479,3377.0,3376.3,0.384472]
[1641481508895,2.00479,3377.0,3376.3,1.023172]
[1641481509593,3.50479,3377.0,3376.3,1.023172]
[1641481509793,2.00479,3377.0,3376.6,2.00479]
[1641481509994,1.5,3376.7,3376.6,2.00479]
[1641481510796,2.00479,3377.0,3376.6,2.464772]
[1641481511397,1.5,3377.3,3376.6,2.464772]
[1641481511596,1.5,3377.0,3376.6,2.464772]
[1641481511797,1.5,3376.7,3376.6,15.144772]
[1641481512597,1.5,3376.7,3376.6,2.464772]
[1641481512998,1.5,3376.7,3376.6,2.00479]
[1641481515201,1.5,3376.7,3376.6,2.464772]
[1641481515401,1.897182,3376.7,3375.1,1.47]
[1641481515606,1.5,3375.2,3374.1,0.7388537]
[1641481515804,3.50479,3375.1,3374.3,2.00479]
[1641481516102,1.5,3374.4,3374.1,0.7388537]
[1641481516305,1.5,3374.2,3374.1,0.7388537]
[1641481516506,3.397182,3374.2,3374.1,0.7388537]
[1641481517305,3.397182,3374.2,3372.9,2.4637163]
[1641481517306,3.397182,3374.2,3372.9,3.20257]
[1641481517506,1.5,3373.5,3372.9,0.7388537]
[1641481517707,2.00479,3373.3,3372.9,0.7388537]
[1641481517906,1.5,3373.1,3372.9,0.7388537]
[1641481518307,1.5,3373.1,3372.9,1.1988357]
[1641481518710,1.5,3373.7,3373.0,1.48142661]
[1641481518909,1.5,3373.8,3373.0,1.48142661]
[1641481519210,1.5,3373.9,3373.0,0.7374]
[1641481519408,1.5,3374.5,3373.1,12.68]
[1641481519608,1.5,3375.0,3373.1,12.68]
[1641481519807,1.5,3375.0,3373.0,0.7374]
[1641481519808,1.5,3373.9,3373.7,2.00479]
[1641481520012,1.5,3373.9,3373.7,2.389262]
[1641481520209,1.5,3374.0,3373.7,2.389262]
[1641481520417,0.397182,3374.2,3373.7,2.389262]
[1641481520612,1.5,3373.8,3373.7,2.00479]
[1641481521012,1.5,3373.8,3373.3,2.00479]
[1641481521209,1.5,3373.8,3372.4,13.299]
[1641481521411,1.5,3373.3,3372.4,12.68]
[1641481521610,1.5,3372.8,3371.0,33.2329]
[1641481521813,1.5,3372.8,3370.9,42.27092509]
[1641481521814,2.00479,3373.1,3372.3,2.00479]
[1641481522012,2.00479,3373.1,3372.4,0.384472]
[1641481522013,0.397182,3373.0,3372.4,0.384472]
[1641481522210,0.397182,3373.0,3372.3,2.00479]
[1641481522211,1.5,3372.5,3372.3,2.00479]
[1641481522711,1.5,3372.5,3370.2,1.84783061]
[1641481522912,1.5,3372.1,3370.6,0.98542509]
[1641481523116,1.5,3372.1,3371.4,12.68]
[1641481523312,0.7532,3372.6,3371.4,12.68]
[1641481523511,1.5,3371.5,3370.6,0.98542509]
[1641481523711,1.5,3370.9,3370.7,2.00479]
[1641481523912,1.5,3370.9,3370.8,0.384472]
[1641481525214,2.00479,3371.8,3370.8,13.064472]
[1641481525514,1.5,3372.0,3370.8,13.064472]
[1641481525913,1.5,3372.0,3371.5,2.00479]
[1641481526115,1.5,3372.0,3371.6,0.384472]
[1641481526315,1.5,3373.3,3371.6,13.064472]
[1641481526514,1.48203258,3373.5,3371.6,14.54650458]
[1641481526715,1.5,3373.1,3371.6,13.683472]
[1641481526915,1.5,3373.1,3371.6,13.064472]
[1641481527515,1.5,3373.1,3371.6,0.384472]
[1641481527715,1.5,3372.9,3371.6,13.064472]
[1641481527922,1.5,3372.3,3371.9,2.00479]
[1641481528116,0.397182,3372.2,3371.9,2.00479]
[1641481528318,2.00479,3372.9,3372.0,0.459982]
[1641481528517,1.5,3372.5,3371.9,2.00479]
[1641481528917,1.897182,3372.5,3371.9,2.00479]
[1641481529319,1.5,3372.2,3371.9,2.00479]
[1641481529619,1.5,3372.5,3372.0,0.459982]
[1641481530018,0.397182,3372.6,3371.9,2.00479]
[1641481530219,1.5,3372.5,3371.9,2.00479]
[1641481530422,1.5,3372.1,3371.9,2.00479]
[1641481530821,0.397182,3372.3,3371.9,2.00479]
[1641481530822,1.5,3372.2,3371.9,2.00479]
[1641481531019,0.397182,3372.3,3371.9,2.00479]
[1641481531219,1.897182,3372.3,3371.9,2.00479]
[1641481531417,0.397182,3372.3,3371.9,2.00479]
[1641481531621,1.5,3372.5,3371.9,2.78579]
[1641481531820,1.5,3372.8,3371.9,4.79058]
[1641481532020,2.00479,3373.2,3372.0,12.68]
[1641481532421,1.5,3373.1,3372.0,12.68]
[1641481532623,2.00479,3373.2,3371.9,4.79058]
[1641481532822,1.5,3372.9,3371.9,4.00958]
[1641481533021,1.5,3372.9,3372.2,1.48176905]
[1641481533223,1.897182,3372.8,3371.9,4.00958]
[1641481533424,0.397182,3372.8,3371.9,2.00479]
[1641481533623,1.5,3372.2,3371.9,2.00479]
[1641481534227,1.897182,3372.2,3371.9,2.00479]
[1641481534626,1.5,3372.2,3371.9,2.00479]
[1641481534826,1.5,3372.2,3372.0,0.459982]
[1641481535228,1.5,3372.2,3372.1,0.384472]
[1641481536034,1.5,3372.2,3372.1,13.064472]
[1641481536231,2.00479,3373.2,3372.1,13.064472]
[1641481536433,3.50479,3373.2,3372.1,0.384472]
[1641481536832,1.5,3372.2,3372.1,0.384472]
[1641481537032,2.00479,3373.2,3372.1,0.844454]
[1641481537234,1.5,3372.2,3372.1,0.384472]
[1641481537431,1.5,3372.2,3371.9,2.00479]
[1641481537832,1.5,3372.2,3372.0,0.459982]
[1641481538033,1.5,3372.2,3371.9,2.00479]
[1641481538636,1.5,3372.2,3372.0,0.459982]
[1641481540844,1.5,3372.2,3371.9,2.00479]
[1641481541037,1.5,3372.0,3370.7,12.68]
[1641481541245,0.5613,3372.2,3371.4,0.384472]
[1641481541246,1.5,3371.8,3371.4,0.384472]
[1641481542039,0.397182,3371.9,3371.4,0.384472]
[1641481542242,1.5,3371.6,3371.4,0.384472]
[1641481542438,0.397182,3371.5,3371.1,2.00479]
[1641481543240,1.5,3371.4,3369.9,12.68]
[1641481543439,1.5,3371.4,3369.6,1.47]
[1641481543440,1.5,3370.1,3369.6,1.47]
[1641481543640,2.0362,3370.1,3369.7,0.384472]
[1641481543842,0.5362,3370.1,3368.6,6.45242509]
[1641481544039,0.5362,3370.1,3370.0,2.00479]
[1641481544441,2.0362,3370.1,3370.0,2.00479]
[1641481544641,0.5362,3370.1,3370.0,2.00479]
[1641481544843,0.397182,3370.3,3370.0,2.00479]
[1641481545041,2.00479,3370.8,3370.0,2.00479]
[1641481545242,3.50479,3370.8,3370.0,2.00479]
[1641481545442,0.397182,3370.7,3370.0,2.00479]
[1641481546143,1.5,3370.6,3370.0,2.00479]
[1641481546349,0.397182,3370.5,3370.0,2.00479]
[1641481546546,0.397182,3370.5,3370.0,2.389262]
[1641481547648,1.5,3370.4,3370.0,2.389262]
[1641481547845,1.5,3370.5,3370.0,2.389262]
[1641481548045,0.397182,3370.4,3370.0,2.389262]
[1641481548446,2.00479,3371.2,3370.0,15.069262]
[1641481548649,1.13075583,3372.5,3370.0,15.069262]
[1641481548650,1.5,3371.5,3370.0,15.808462]
[1641481548849,33.9659,3372.1,3370.4,12.68]
[1641481549047,33.9659,3372.1,3371.5,1.48209847]
[1641481549048,1.5,3372.1,3371.5,1.48209847]
[1641481549249,1.897182,3372.1,3371.5,0.751]
[1641481550048,1.897182,3372.1,3371.6,0.384472]
[1641481550252,1.5,3372.1,3371.6,0.384472]
[1641481550651,1.5,3371.7,3371.6,0.384472]
[1641481550849,1.48231377,3372.9,3371.4,2.00479]
[1641481551050,1.5,3373.0,3371.4,2.00479]
[1641481551251,1.5,3372.0,3371.4,2.00479]
[1641481551650,1.897182,3372.0,3371.4,2.00479]
[1641481552051,2.00479,3371.9,3371.4,2.00479]
[1641481553351,0.397182,3371.8,3371.4,2.00479]
[1641481553750,0.397182,3371.8,3371.4,14.68479]
[1641481553952,0.397182,3371.8,3371.4,2.00479]
[1641481554352,1.5,3372.0,3371.4,2.00479]
[1641481554952,1.5,3372.0,3371.4,14.68479]
[1641481556153,1.5,3372.0,3371.9,2.00479]
[1641481556353,2.00479,3372.6,3371.9,2.464772]
[1641481556556,2.00479,3373.1,3372.2,12.68]
[1641481556754,2.00479,3373.1,3372.4,1.4816988]
[1641481556954,0.397182,3373.0,3372.1,1.48181516]
[1641481557353,0.397182,3373.0,3372.0,0.384472]
[1641481557956,0.397182,3373.0,3372.1,12.68]
[1641481558156,0.397182,3373.0,3372.5,2.00479]
[1641481558654,1.5,3372.6,3372.5,2.00479]
[1641481559254,0.397182,3373.0,3372.5,2.00479]
[1641481559455,1.5,3372.9,3372.5,2.00479]
[1641481559654,1.5,3372.7,3372.5,2.00479]
[1641481559855,1.897182,3372.7,3372.5,2.00479]
[1641481560255,1.897182,3372.7,3372.0,0.384472]
[1641481560655,1.5,3372.2,3371.9,2.00479]
[1641481560859,1.5,3372.0,3371.9,2.00479]
[1641481561056,2.1177,3372.0,3371.9,2.00479]
[1641481561255,2.514882,3372.0,3371.9,2.00479]
[1641481562056,1.897182,3372.0,3371.9,2.00479]
[1641481562456,0.397182,3372.0,3371.9,2.00479]
[1641481562660,1.5,3372.3,3371.9,2.00479]
[1641481562858,1.5,3372.0,3371.9,2.00479]
[1641481563059,1.5,3372.0,3371.3,2.00479]
[1641481563258,1.5,3371.4,3370.7,1.48243683]
[1641481563460,1.5,3371.2,3370.7,1.48243683]
[1641481563658,1.5,3371.9,3370.7,1.48243683]
[1641481563859,1.5,3372.0,3370.7,0.7604]
[1641481564060,1.5,3372.3,3371.3,2.00479]
[1641481564262,2.00479,3372.4,3371.3,2.00479]
[1641481564560,2.00479,3372.4,3369.6,33.2021]
[1641481564561,1.5,3371.5,3369.6,33.2021]
[1641481564760,0.7933,3371.5,3368.4,1.47]
[1641481564960,1.5,3370.4,3369.1,31.6585]
[1641481565161,1.5,3371.1,3368.8,13.467]
[1641481565360,1.5,3371.1,3369.1,12.68]
[1641481565560,31.2508,3371.3,3369.1,12.68]
[1641481566062,1.5,3370.1,3369.9,2.00479]
[1641481566261,0.397182,3370.0,3369.9,2.00479]
[1641481566462,0.397182,3370.0,3368.7,12.68]
[1641481566663,0.397182,3370.0,3368.9,12.68]
[1641481566863,1.897182,3370.0,3368.9,12.68]
[1641481567063,1.897182,3370.0,3369.1,1.483136]
[1641481567361,0.397182,3370.0,3369.1,1.483136]
[1641481567561,1.5,3369.7,3369.1,1.483136]
[1641481567764,0.397182,3369.6,3369.2,0.384472]
[1641481567964,0.397182,3369.6,3368.7,12.68]
[1641481568164,0.397182,3369.6,3369.1,1.483136]
[1641481568365,1.5,3369.2,3368.9,2.00479]
[1641481568567,0.397182,3369.1,3368.9,2.00479]
[1641481569371,1.5,3369.0,3368.3,1.48348804]
[1641481569571,1.5,3369.0,3368.1,1.01957884]
[1641481569572,1.5,3368.4,3368.1,1.01957884]
[1641481569770,0.52411867,3368.2,3368.1,1.52180867]
[1641481569969,0.8773,3368.4,3368.1,1.98179067]
[1641481570169,0.5646,3369.2,3368.1,1.98179067]
[1641481570170,0.52411867,3369.2,3368.3,14.68479]
[1641481570369,0.52411867,3368.4,3368.3,2.86479]
[1641481570575,0.92130067,3368.4,3368.3,0.86]
[1641481571371,0.57613072,3368.4,3368.3,0.86]
[1641481571572,0.17894872,3368.4,3368.3,0.86]
[1641481571975,0.17894872,3368.4,3368.3,0.844454]
[1641481572375,0.17894872,3368.4,3368.3,2.09861025]
[1641481572775,0.17894872,3368.4,3368.3,14.77861025]
[1641481573275,2.00479,3369.8,3368.3,15.02445399]
[1641481573476,2.00479,3369.8,3368.3,17.94713959]
[1641481573875,2.00479,3369.8,3368.8,12.68]
[1641481574075,0.70576631,3370.3,3369.7,2.00479]
[1641481574275,0.70576631,3370.3,3369.8,13.064472]
[1641481574476,0.70576631,3370.3,3369.8,14.54727812]
[1641481574675,0.93743811,3370.6,3369.8,14.54727812]
[1641481574876,0.70576631,3370.8,3370.5,14.17999999]
[1641481575081,0.70576631,3370.8,3370.7,12.68]
[1641481575279,0.93743811,3371.1,3370.7,14.16236651]
[1641481576080,0.93743811,3371.1,3370.9,14.68479]
[1641481576378,1.17680506,3371.3,3371.0,13.139982]
[1641481576785,1.41216607,3371.6,3371.0,13.139982]
[1641481577088,2.00479,3371.7,3371.0,13.139982]
[1641481577485,0.42979,3372.0,3371.6,1.49999999]
[1641481577685,0.9434087,3372.2,3371.6,1.49999999]
[1641481577686,0.9434087,3372.2,3372.0,12.68]
[1641481577986,1.17680506,3372.5,3372.1,13.139982]
[1641481578185,1.17680506,3372.6,3372.5,12.68]
[1641481578788,1.17680506,3372.6,3372.5,15.66161317]
[1641481578986,1.17680506,3372.6,3372.5,13.139982]
[1641481579187,1.41216607,3372.9,3372.5,21.139982]
[1641481579387,1.75607417,3373.1,3372.8,22.17999999]
[1641481579590,0.47162067,3373.1,3373.0,15.66091324]
[1641481579888,1.17935152,3373.6,3373.0,15.66091324]
[1641481580086,1.17935152,3373.6,3373.5,16.68958]
[1641481580286,1.41522182,3373.8,3373.5,18.57405199]
[1641481580487,1.41522182,3373.8,3373.7,14.17999999]
[1641481580687,1.41522182,3373.8,3373.7,12.68]
[1641481580886,0.62882755,3374.0,3373.7,12.68]
[1641481581087,0.62882755,3374.0,3373.6,4.56485131]
[1641481581286,1.5,3373.8,3373.5,4.00958]
[1641481581487,1.5,3373.9,3373.5,4.00958]
[1641481581687,0.397182,3373.8,3373.5,4.00958]
[1641481581887,1.5,3373.6,3373.5,2.00479]
[1641481582086,5.50958,3373.6,3372.5,2.00479]
[1641481582289,4.00958,3373.6,3372.5,2.00479]
[1641481582487,2.00479,3373.6,3372.6,12.68]
[1641481582689,2.00479,3373.6,3372.6,14.17999999]
[1641481582887,1.75607417,3374.4,3372.6,14.17999999]
[1641481583087,1.75607417,3374.4,3372.6,12.68]
[1641481583288,1.75607417,3374.4,3372.6,14.17999999]
[1641481583486,1.75607417,3374.4,3372.9,1.49999999]
[1641481583689,1.75607417,3374.4,3373.1,1.49999999]
[1641481583888,2.35621358,3374.6,3373.3,1.49999999]
[1641481584088,1.75607417,3374.7,3374.4,2.00479]
[1641481584288,1.75607417,3374.7,3374.6,1.49999999]
[1641481584489,2.35621358,3375.0,3374.6,14.17999999]
[1641481584689,2.92806608,3375.3,3374.9,14.17999999]
[1641481584890,2.92806608,3375.3,3375.2,14.17999999]
[1641481585088,2.92806608,3375.3,3375.2,13.139982]
[1641481585289,3.79092697,3375.5,3375.2,12.68]
[1641481585490,0.397182,3375.5,3375.2,12.68]
[1641481586089,1.5,3375.3,3374.4,2.00479]
[1641481586290,1.5,3374.7,3374.4,2.00479]
[1641481586488,0.397182,3374.6,3374.4,2.00479]
[1641481586889,1.5,3374.7,3374.4,2.00479]
[1641481587289,1.5,3374.7,3373.1,0.619]
[1641481587494,1.5,3374.7,3373.7,1.48111943]
[1641481588092,2.00479,3374.7,3373.9,2.00479]
[1641481588291,0.397182,3374.6,3374.0,0.384472]
[1641481588991,1.5,3374.3,3373.9,2.00479]
[1641481589191,0.397182,3374.2,3373.9,2.00479]
[1641481589491,0.459982,3374.1,3373.9,3.00676623]
[1641481590293,1.897182,3374.0,3373.9,3.00676623]
[1641481590694,1.897182,3374.0,3373.9,6.623e-05]
[1641481590896,12.68,3373.9,3373.6,2.00479]
[1641481591094,1.5,3373.7,3372.8,1.2127557]
[1641481591297,1.5,3373.0,3372.4,3.44359811]
[1641481591593,1.5,3373.4,3372.9,1.50869934]
[1641481591993,1.5,3373.0,3372.9,1.50869934]
[1641481592195,6.366744,3373.0,3372.9,1.50869934]
[1641481592597,4.00958,3373.0,3372.9,1.50869934]
[1641481592895,1.09906666,3373.3,3372.9,2.05039999]
[1641481593094,0.92126666,3373.3,3373.0,12.68]
[1641481593297,0.92126666,3373.3,3373.1,0.397182]
[1641481593595,0.397182,3373.4,3373.2,0.384472]
[1641481593795,1.42148,3373.6,3373.2,0.384472]
[1641481593796,14.10148,3374.6,3373.2,1.50869934]
[1641481594201,2.00479,3374.3,3373.6,2.00479]
[1641481594396,0.397182,3374.2,3373.6,2.401972]
[1641481594796,2.00479,3374.3,3373.6,2.401972]
[1641481595598,1.42148,3374.5,3373.6,2.401972]
[1641481595798,3.42627,3374.7,3374.0,0.75430297]
[1641481595999,0.397182,3374.6,3374.0,0.75430297]
[1641481596300,0.397182,3374.6,3374.0,1.15148497]
[1641481596700,1.42148,3374.7,3374.0,1.15148497]
[1641481597000,34.6122,3375.6,3374.0,1.87815227]
[1641481597200,1.5,3375.0,3374.0,0.397182]
[1641481597803,1.5,3375.2,3374.0,0.397182]
[1641481598001,1.5,3375.5,3374.0,0.397182]
[1641481598203,1.5,3375.5,3374.5,2.00479]
[1641481598400,1.5,3375.2,3374.5,2.00479]
[1641481598601,0.397182,3375.1,3374.5,2.401972]
[1641481598802,1.5,3375.5,3374.5,2.786444]
[1641481599002,2.00479,3375.7,3374.5,2.786444]
[1641481599202,1.5,3375.5,3374.5,2.786444]
[1641481599402,1.5,3375.5,3374.5,2.00479]
[1641481599902,3.50479,3375.7,3374.5,2.00479]
[1641481600101,3.50479,3375.7,3373.8,1.48104923]
[1641481600102,1.5,3375.1,3373.8,1.48104923]
[1641481600305,1.5,3374.7,3374.0,2.00479]
[1641481600502,0.397182,3374.6,3374.0,2.00479]
[1641481601004,0.397182,3374.6,3374.1,0.781654]
[1641481602004,0.397182,3374.6,3374.1,0.384472]
[1641481602405,0.397182,3374.6,3374.0,2.00479]
[1641481603206,0.397182,3374.6,3374.0,2.401972]
[1641481603406,0.397182,3374.6,3374.0,2.00479]
[1641481604407,11.49999999,3374.1,3373.0,0.75430297]
[1641481604707,1.5,3373.1,3373.0,0.75430297]
[1641481604906,1.897182,3373.1,3372.2,1.50869934]
[1641481605110,0.397182,3373.1,3372.2,1.50869934]
[1641481605308,0.397182,3373.1,3372.8,0.7492767]
[1641481606311,2.00479,3373.6,3372.8,1.1464587]
[1641481606709,2.00479,3373.6,3372.8,0.397182]
[1641481609417,0.397182,3373.5,3372.8,0.397182]
[1641481610018,1.5,3372.9,3372.7,2.00479]
[1641481610213,2.00479,3372.8,3372.3,0.9991949]
[1641481610413,2.00479,3372.8,3372.4,0.384472]
[1641481610616,2.00479,3372.8,3372.4,0.781654]
[1641481611215,2.401972,3372.8,3372.4,0.781654]
[1641481611715,2.00479,3372.8,3372.4,0.781654]
[1641481613120,1.16980169,3374.5,3372.6,1.49999999]
[1641481613417,1.1493938,3374.5,3373.2,1.48132786]
[1641481613616,1.48157806,3374.9,3373.2,1.48132786]
[1641481613816,1.5,3374.2,3373.2,1.48132786]
[1641481614017,1.42148,3373.7,3373.2,1.48132786]
[1641481614217,1.818662,3373.7,3373.6,2.00479]
[1641481614417,3.318662,3373.7,3373.2,2.00479]
[1641481614619,1.5,3373.5,3372.7,0.9991949]
[1641481614818,0.397182,3373.4,3372.8,0.397182]
[1641481615318,1.89296073,3373.7,3373.6,0.30956926]
[1641481615518,0.47148073,3373.7,3373.6,0.30956926]
[1641481616517,0.47148073,3373.7,3373.5,0.384472]
[1641481617618,0.47148073,3373.7,3373.6,0.397182]
[1641481617820,0.47148073,3373.9,3373.6,0.70675126]
[1641481618018,0.47148073,3373.9,3373.7,0.459982]
[1641481618420,0.47148073,3373.9,3373.6,2.31435926]
[1641481618825,0.47148073,3374.2,3373.7,0.30956926]
[1641481619423,0.47148073,3374.2,3373.8,0.397182]
[1641481620023,0.47148073,3374.3,3373.8,0.397182]
[1641481620323,0.47148073,3374.3,3374.1,2.00479]
[1641481620524,0.47148073,3374.3,3374.2,0.857164]
[1641481620827,0.47148073,3374.3,3374.2,1.241636]
[1641481621023,1.42148,3374.6,3374.2,1.241636]
[1641481621427,1.42148,3375.0,3374.2,1.241636]
[1641481621724,3.901972,3374.7,3374.2,1.241636]
[1641481621925,1.5,3374.4,3373.9,0.30956926]
[1641481622225,0.397182,3374.3,3373.9,0.30956926]
[1641481622425,2.00479,3374.2,3373.9,0.30956926]
[1641481622826,2.00479,3374.2,3373.9,1.25699397]
[1641481623327,2.00479,3374.2,3373.9,1.64146597]
[1641481623626,2.00479,3374.2,3373.7,0.397182]
[1641481623627,0.86855474,3374.1,3373.6,2.00479]
[1641481623825,0.86855474,3374.1,3373.7,0.397182]
[1641481624028,0.86855474,3374.1,3373.6,2.00479]
[1641481624827,0.47137274,3374.0,3373.6,2.00479]
[1641481625432,0.47137274,3374.0,3373.7,0.384472]
[1641481625628,0.47137274,3374.0,3373.8,0.857164]
[1641481625828,1.17803445,3374.3,3373.8,0.857164]
[1641481626228,0.70662487,3374.0,3373.8,1.61080144]
[1641481626427,0.70662487,3374.0,3373.9,2.00479]
[1641481627329,1.10380687,3374.3,3373.9,2.464772]
[1641481627533,1.10380687,3374.3,3373.9,3.00968546]
[1641481628130,0.70662487,3374.3,3374.0,0.397182]
[1641481628433,0.70662487,3374.3,3374.1,0.459982]
[1641481628630,0.47137502,3374.2,3374.1,0.459982]
[1641481630032,0.94134732,3374.4,3374.1,0.459982]
[1641481630232,1.5,3374.2,3373.7,1.00489546]
[1641481630535,18.18958,3373.8,3373.1,0.62874952]
[1641481630734,1.5,3373.6,3373.1,0.62874952]
[1641481630934,18.18958,3373.8,3372.7,2.51514188]
[1641481631134,1.5,3373.5,3372.7,2.51514188]
[1641481631335,0.397182,3373.4,3373.1,1.88635641]
[1641481631534,1.959982,3373.3,3373.1,1.88635641]
[1641481631734,0.459982,3373.3,3373.1,1.88635641]
[1641481631934,0.397182,3373.2,3372.9,9.829e-05]